Cogmind - Beta 16 @@@ ROGUE MODE // 2026.01.04 @ 02:35:11 Player: jam Result: Destroyed by S-27 Virus with Autogun Performance ------------- Evolutions (4) 2000 Regions Visited (11) 2200 Robots Destroyed (73) 365 Value Destroyed (2473) 2473 Prototype IDs (29) 580 Alien Tech Used (0) 0 Bonus (833) 833 TOTAL SCORE: 8451 Bonus ------- High Alert Combat Kills 23 Follower Combat Kills 751 Aligned with FarCom 300 Friendly Fire -241 Cogmind --------- Core Integrity 0/850 Matter 7/300 Energy 140/140 System Corruption 4% Temperature Cool (0) Movement Walking (190) Ox1 Location -6/Factory Parts ------- > --- POWER (2) -------- Light Deuterium Engine > --- PROPULSION (4) --- Carbon-fiber Leg Carbon-fiber Leg > --- UTILITY (6) ------ Large Storage Unit IFF Parser Core Analyzer Armor Integrity Analyzer EM Disruption Field Hacking Suite > --- WEAPON (3) ------- Mini Assault Cannon Dirty Datajack Remote Datajack > --- INVENTORY (15) --- System Shield Dynamic Insulation System Chronowheel Heavy Missile Launcher Heavy Missile Launcher Precision Grenade Launcher Peak State ------------ > --- POWER ------------ Reinforced Deuterium Engine Light Fission Core > --- PROPULSION ------- Aluminum Leg Makeshift Leg Makeshift Leg > --- UTILITY ---------- Large Storage Unit Triangulator Advanced Visual Processing Unit Core Analyzer Armor Integrity Analyzer Drone Bay > --- WEAPON ----------- Mini Assault Cannon Heavy Flak Cannon Heavy Missile Launcher > --- INVENTORY -------- Light Nuclear Core Micro Nuclear Core IFF Parser Microactuators EM Disruption Field System Shield Dynamic Insulation System Chronowheel Mini Assault Cannon Heavy Missile Launcher Heavy Missile Launcher Precision Grenade Launcher Dirty Datajack Remote Datajack Plasma Flamer [Rating: 61] Favorites ----------- Power Antimatter Reactor Engine Deuterium Engine Power Core Nuclear Core Reactor Antimatter Reactor Propulsion Aluminum Leg Treads Advanced Treads Leg Aluminum Leg Hover Unit Gravmag System Utility Large Storage Unit Device Improved Heat Sink Storage Large Storage Unit Processor Armor Integrity Analyzer Hackware Hacking Suite Protection Improved Propulsion Shielding Weapon Mini Assault Cannon Energy Gun Beam Rifle Energy Cannon EM Pulse Cannon Ballistic Gun Heavy Assault Rifle Ballistic Cannon Mini Assault Cannon Launcher Heavy Missile Launcher Special Weapon Plasma Flamer Special Melee Weapon Dirty Datajack Build | -11 -10 -10 -10 -9 -8 -7 -7 -7 -7 -7 -6 ------- Run | Yrd Mat Min Exi Min Mat Fac Was Fac Low Low Fac Slots Evolved 8 | . . . . . 4 2 . . . . 2 Power 1 | . . . . . 1 . . . . . . Propulsion 2 | . . . . . . 1 . . . . 1 Utility 4 | . . . . . 2 1 . . . . 1 Weapon 1 | . . . . . 1 . . . . . . Parts Attached 88 | 6 8 2 . 4 18 6 4 10 5 6 19 Power 14 | 1 1 . . . 3 . 2 . 1 3 3 Engine 6 | 1 1 . . . 2 . . . . . 2 Core 5 | . . . . . 1 . . . . 3 1 Reactor 3 | . . . . . . . 2 . 1 . . Propulsion 21 | 2 2 . . 2 3 2 . 3 2 1 4 Treads 7 | 2 2 . . . . . . 3 . . . Leg 12 | . . . . 2 3 2 . . 2 1 2 Wheel . | . . . . . . . . . . . . Hover 2 | . . . . . . . . . . . 2 Flight . | . . . . . . . . . . . . Utility 27 | 1 3 . . 1 6 2 2 3 1 1 7 Device 12 | . . . . . 3 1 2 1 1 . 4 Storage 2 | 1 1 . . . . . . . . . . Processor 9 | . 1 . . 1 2 1 . 2 . 1 1 Hackware 1 | . . . . . . . . . . . 1 Protection 3 | . 1 . . . 1 . . . . . 1 Artifact . | . . . . . . . . . . . . Weapon 26 | 2 2 2 . 1 6 2 . 4 1 1 5 Energy Gun 7 | 2 . 2 . . 2 . . . 1 . . Energy Cannon 4 | . . . . 1 1 2 . . . . . Ballistic Gun 2 | . . . . . 2 . . . . . . Ballistic Cannon 8 | . 2 . . . 1 . . 3 . . 2 Launcher 2 | . . . . . . . . 1 . 1 . Special Weapon 2 | . . . . . . . . . . . 2 Impact Weapon . | . . . . . . . . . . . . Slashing Weapon . | . . . . . . . . . . . . Piercing Weapon . | . . . . . . . . . . . . Special Melee Weapon 1 | . . . . . . . . . . . 1 Unidentified Prototypes 4 | . . . . . . 1 . 2 . . 1 Corrupted Parts 1 | . . . . . . . . . . 1 . System Corruption 2 | . . . . . . . . . . 2 . Parts Lost 19 | . 1 . . . 3 . . . 1 . 14 Power 6 | . 1 . . . . . . . . . 5 Propulsion 5 | . . . . . . . . . . . 5 Utility 2 | . . . . . 1 . . . . . 1 Weapon 6 | . . . . . 2 . . . 1 . 3 Highest Loss Streak 4 | . 1 . . . 2 . . . 1 . 4 To Critical Strikes . | . . . . . . . . . . . . Average Backups 13 | 2 5 9 10 12 14 14 14 15 14 14 13 Power 1 | . . . . . 1 2 2 2 1 . 1 Propulsion 1 | 1 3 6 6 4 2 . . . . . . Utility 3 | . . 2 3 3 2 2 4 4 5 4 4 Weapon 4 | . 1 1 1 3 6 6 6 6 5 4 4 Tool/Special . | . . . . . . . . . . . . Unused Backups 19 | . . . . 1 6 . 1 5 . . 6 Power 2 | . . . . . . . 1 1 . . . Propulsion 2 | . . . . . 2 . . . . . . Utility 5 | . . . . 1 1 . . 1 . . 2 Weapon 7 | . . . . . 3 . . 2 . . 2 Tool/Special 3 | . . . . . . . . 1 . . 2 Average Slot Usage (%) 95 | . 91 100 100 97 97 99 100 99 95 94 82 Engine 4 | . 13 14 14 14 9 7 1 . . . 3 Core 3 | . . . . . 8 7 3 . . 7 7 Reactor 6 | . . . . . . . 9 15 15 7 . Treads 7 | . 28 28 28 10 . . . 5 21 . . Leg 13 | . . . . 15 18 23 23 16 1 22 14 Device 11 | . . . . . 5 21 22 17 15 9 9 Storage 8 | . 14 14 14 14 9 7 7 7 7 7 6 Processor 12 | . 6 14 14 14 18 1 . 6 15 17 19 Protection 2 | . 1 . . . 1 7 7 5 . . . Energy Gun 5 | . 14 23 28 20 10 5 . . 1 . . Energy Cannon 7 | . . . . 7 8 10 23 16 2 . . Ballistic Gun 1 | . . . . . 5 4 . . . . . Ballistic Cannon 7 | . 12 4 . . 1 . . 4 15 15 11 Launcher 1 | . . . . . . . . 1 . 4 4 Peak Build Rating 61 | 6 8 11 12 21 39 37 50 59 58 56 61 Average Rating 42 | 4 6 10 11 17 34 34 45 50 56 52 52 On Entrance 27 | . 6 8 11 12 21 30 37 48 58 52 50 Avg Prop Armor Cover (%) 6 | . . . . . 6 . . . . . . Naked Turns . | . . . . . . . . . . . . Heaviest Build 76 | 11 29 29 29 34 53 59 75 76 69 70 63 Greatest Support 66 | 40 40 40 40 40 35 38 38 66 66 50 50 Greatest Overweight (x) 24 | . . . . 1 3 1 1 24 3 1 16 Average Overweight (x) . | . . . . . 1 1 1 1 . . 1 Largest Inventory Capacity 15 | 8 15 15 15 15 15 15 15 15 15 15 15 Average Capacity 14 | 6 8 15 15 15 15 15 15 15 15 15 15 Most Carried 15 | 4 8 10 11 15 15 15 15 15 15 15 15 Average Carried 13 | 2 5 9 10 12 14 14 14 14 14 14 13 Final Capacity 15 | 8 15 15 15 15 15 15 15 15 15 15 15 Final Carried 15 | 4 8 10 11 13 15 14 15 15 15 13 6 Class Distribution -------------------- 22% | Scavenger-Gunner 18% | Mutant 13% | Scavenger-Tank 12% | Gunner 11% | Scavenger-Skirmisher 10% | Scavenger-Mutant 6% | Skirmisher 5% | Tank Dominant Class ---------------- Mutant | -10/Materials Mutant | -10/Mines Mutant | -10/Exiles Mutant | -9/Mines Skirmisher | -8/Materials Scavenger-Tank | -7/Factory Scavenger-Tank | -7/Waste Scavenger-Skirmisher | -7/Factory Scavenger-Gunner | -7/Lower Caves Scavenger-Gunner | -7/Lower Caves Gunner | -6/Factory Resources | -11 -10 -10 -10 -9 -8 -7 -7 -7 -7 -7 -6 ----------- Run | Yrd Mat Min Exi Min Mat Fac Was Fac Low Low Fac Matter Collected 2151 | 226 53 111 . 35 449 104 119 130 232 342 350 Remotely . | . . . . . . . . . . . . Salvage Created 2346 | . 65 70 . . 816 250 . 426 162 193 364 Parts 127 | . 6 2 . . 35 14 . 25 12 4 29 Haulers Intercepted . | . . . . . . . . . . . . Recyclers Shooed 2 | . . . . . . . . 1 . . 1 Parts Field Recycled . | . . . . . . . . . . . . Retrieved Matter . | . . . . . . . . . . . . Parts Self-Destructed 19 | . . . . . . . . . 11 8 . Prevented 5 | . . . . . . . . . 4 1 . Parts Restored . | . . . . . . . . . . . . Kills | -11 -10 -10 -10 -9 -8 -7 -7 -7 -7 -7 -6 ------- Run | Yrd Mat Min Exi Min Mat Fac Was Fac Low Low Fac Combat Hostiles Destroyed 46 | . 3 . . . 11 3 . 8 6 7 8 Guns 3 | . 2 . . . 1 . . . . . . Cannons 39 | . 1 . . . 10 2 . 6 6 6 8 AOE 3 | . . . . . . . . 2 . 1 . Classes Destroyed 12 | . 2 1 . . 5 2 . . . . 2 Worker 6 | . . . . . . 1 . 2 . . 3 Builder 5 | . . . . . . . . . . . 5 Recycler 5 | . . 1 . . 2 . . 1 . . 1 Mechanic 1 | . . . . . . 1 . . . . . Operator 2 | . . . . . 1 . . . . . 1 Watcher 7 | . 1 . . . 4 1 . . . . 1 Swarmer 11 | . 3 . . . . . . 3 3 1 1 Grunt 16 | . . . . . 6 . . 3 . 3 4 Duelist 2 | . . . . . 1 . . . . 1 . Sentry 7 | . . . . . 2 1 . 2 1 1 . Hunter 7 | . . . . . 2 2 . . 2 1 . Programmer 3 | . . . . . . . . . . . 3 Thug 1 | . . . . . . . . 1 . . . Best Kill Streak 6 | . 1 1 . . 4 2 . 3 3 2 6 Combat Bots Only 3 | . 1 . . . 3 1 . 3 3 2 2 Max Kills in Single Turn 4 | . 1 1 . . 1 1 . 2 1 1 4 Gunslinging . | . . . . . . . . . . . . Exploded 2 | . . . . . . . . 2 . 1 . Melee . | . . . . . . . . . . . . Uniques/NPCs Destroyed . | . . . . . . . . . . . . Combat | -11 -10 -10 -10 -9 -8 -7 -7 -7 -7 -7 -6 -------- Run | Yrd Mat Min Exi Min Mat Fac Was Fac Low Low Fac Hostile Shots Fired 521 | . 65 2 . . 67 43 . 16 50 46 232 Missed 158 | . 20 . . . 18 13 . 3 14 19 71 Hits 363 | . 45 2 . . 49 30 . 13 36 27 161 Projectile 363 | . 45 2 . . 49 30 . 13 36 27 161 AOE 1 | . 1 . . . . . . . . . . Critical Strikes 10 | . . . . . 2 . . . . . 8 Damage Taken 5235 | . 507 31 . . 740 224 . 194 428 260 2851 Core 1250 | . 96 . . . 128 22 . 51 60 34 859 Absorbed by Shields 141 | . . . . . . 91 . 8 . 42 . Redirected to Shielding 89 | . . . . . 36 35 . 18 . . . Regen/Repaired (Parts) 91 | . . . . . . . 91 . . . . Core Remaining (%) 78 | 100 . . . 61 76 . . . . 76 . Volleys Fired 160 | . 11 2 . 1 44 15 . 10 11 17 49 Largest 3 | . 2 2 . 2 3 3 . 3 3 3 3 Hottest 193 | . 90 60 . 112 157 193 . 191 143 119 180 Shots Fired 361 | . 22 4 . 2 124 45 . 28 28 36 72 Gun 112 | . 16 . . 2 62 27 . . 5 . . Cannon 242 | . 6 4 . . 62 18 . 26 23 34 69 Launcher 5 | . . . . . . . . 2 . 2 1 Special 2 | . . . . . . . . . . . 2 Kinetic 201 | . 6 4 . . 40 12 . 14 22 34 69 Thermal 111 | . 16 . . 2 53 33 . 5 . . 2 Explosive 5 | . . . . . . . . 2 . 2 1 Electromagnetic 44 | . . . . . 31 . . 7 6 . . Robot Hit Streak 9 | . 3 5 . 1 8 9 . 8 4 4 4 Robot Miss Streak 8 | . 1 . . 1 5 2 . 3 3 3 8 Penetration Max . | . . . . . . . . . . . . Secondary Targets . | . . . . . . . . . . . . Shots Hit Robots 203 | . 13 4 . 1 66 28 . 13 15 20 43 Core Hits 112 | . 5 2 . . 31 13 . 14 8 14 25 Critical Kills 1 | . . . . . . 1 . . . . . Critical Parts Destroyed . | . . . . . . . . . . . . Critical Strikes 8 | . . . . . 1 1 . . 2 3 1 Meltdown 1 | . . . . . . 1 . . . . . Blast 7 | . . . . . 1 . . . 2 3 1 Melee Attacks 3 | . . . . . . . . . . . 3 Impact . | . . . . . . . . . . . . Slashing . | . . . . . . . . . . . . Piercing 3 | . . . . . . . . . . . 3 Sneak Attacks . | . . . . . . . . . . . . Combat Hostiles . | . . . . . . . . . . . . Follow-up Attacks . | . . . . . . . . . . . . Damage Inflicted 6285 | . 179 68 . 23 1426 536 . 658 408 866 2121 Guns 875 | . 127 . . 15 437 218 . . 78 . . Cannons 3606 | . 52 63 . . 939 294 . 435 330 503 990 Explosions 1644 | . . . . . 38 . . 163 . 363 1080 Melee 5 | . . . . . . . . . . . 5 Ramming 129 | . . 5 . 8 12 24 . 60 . . 20 Kinetic 2573 | . 52 63 . . 407 57 . 199 302 503 990 Thermal 1867 | . 127 . . 15 820 455 . 179 . . 271 Explosive 1247 | . . . . . . . . 49 . 363 835 Electromagnetic 464 | . . . . . 187 . . 171 106 . . Impact . | . . . . . . . . . . . . Slashing . | . . . . . . . . . . . . Piercing 5 | . . . . . . . . . . . 5 Highest Corruption 4 | . . . . . . . . . . 2 4 Average Corruption 2 | . . . . . . . . . . 2 3 Corruption Purged . | . . . . . . . . . . . . Corruption Blocked . | . . . . . . . . . . . . Effects 24 | . . . . . . . . . . 11 13 Message Errors 5 | . . . . . . . . . . 3 2 Matter Fused 5 | . . . . . . . . . . 1 4 Heat Flow Errors 3 | . . . . . . . . . . 2 1 Energy Discharges 1 | . . . . . . . . . . 1 . Parts Rejected 2 | . . . . . . . . . . 1 1 Data Loss (minor) 5 | . . . . . . . . . . 2 3 Data Loss (major) 1 | . . . . . . . . . . 1 . Misfires 1 | . . . . . . . . . . . 1 Alerts 1 | . . . . . . . . . . . 1 Overload Shots . | . . . . . . . . . . . . Overflow Damage 264 | . . . . . 15 . . 6 . 21 222 Projectiles 41 | . . . . . 15 . . . . 21 5 Explosions 223 | . . . . . . . . 6 . . 217 Melee . | . . . . . . . . . . . . Knockbacks 19 | . 2 . . . 4 . . 2 3 1 7 Impact . | . . . . . . . . . . . . Kinetic 18 | . 2 . . . 4 . . 2 2 1 7 Secondary 1 | . . . . . . . . . 1 . . Self-Inflicted Damage 123 | . . . . . . . . 9 . . 114 Shots 3 | . . . . . . . . 1 . . 2 Rammed 4 | . . 1 . 1 . . . 1 . . 1 Targets Rammed 23 | . . 2 . 2 4 3 . 8 . . 4 Kicked 17 | . . . . 1 4 3 . 6 . . 3 Crushed 2 | . . 1 . . . . . 1 . . . Highest Temperature 621 | . 165 9 . 51 621 155 . 174 177 212 297 Average Temperature 153 | . 56 9 . 29 243 56 . 52 69 57 106 Received Heat Transfer 1078 | . 60 9 . . 333 24 . 18 30 109 495 Effects 43 | . . . . . 43 . . . . . . Shutdowns 16 | . . . . . 16 . . . . . . Energy Bleed 4 | . . . . . 4 . . . . . . Interference 9 | . . . . . 9 . . . . . . Matter Decay 4 | . . . . . 4 . . . . . . Short Circuit 3 | . . . . . 3 . . . . . . Damage (major) 7 | . . . . . 7 . . . . . . Siege Activations . | . . . . . . . . . . . . Martial Activations . | . . . . . . . . . . . . Shielding Activations . | . . . . . . . . . . . . Robots Disrupted . | . . . . . . . . . . . . Combat Hostiles . | . . . . . . . . . . . . Robots Corrupted . | . . . . . . . . . . . . Combat Hostiles . | . . . . . . . . . . . . Parts Fried . | . . . . . . . . . . . . Impact Corruptions . | . . . . . . . . . . . . Robots Melted 1 | . . . . . . 1 . . . . . Combat Hostiles 1 | . . . . . . 1 . . . . . Parts Melted 5 | . . . . . . 5 . . . . . Heat Transferred 2904 | . 311 . . 37 1234 851 . 161 . . 310 Parts Sabotaged . | . . . . . . . . . . . . Parts Stolen . | . . . . . . . . . . . . Parts Stripped . | . . . . . . . . . . . . Power Chain Reactions 2 | . . . . . 1 . . 1 . . . Alert | -11 -10 -10 -10 -9 -8 -7 -7 -7 -7 -7 -6 ------- Run | Yrd Mat Min Exi Min Mat Fac Was Fac Low Low Fac Maximum Alert Level 2 | . . . . . . . . 2 . . 1 Low Security (%) 72 | 100 100 100 . 100 100 100 100 20 . . 72 Level 1 21 | . . . . . . . . 58 . . 27 Level 2 5 | . . . . . . . . 21 . . . Level 3 . | . . . . . . . . . . . . Level 4 . | . . . . . . . . . . . . Level 5 . | . . . . . . . . . . . . High Security . | . . . . . . . . . . . . Max Security . | . . . . . . . . . . . . Peak Influence 514 | . 45 5 . . 94 30 . 514 . . 297 Initial 22 | . . . . . . 22 . . . . 6 Average 99 | . 12 . . . 26 7 . 276 . . 76 Influence Increases 2901 | . 112 5 . . 369 107 . 1236 233 289 550 Destroy 0b10 Robot/C 1380 | . 60 . . . 220 60 . 500 160 220 160 Destroy 0b10 Robot/NC 165 | . 5 5 . . 35 15 . 50 . . 55 Destroy Leader 342 | . 12 . . . 78 32 . 118 30 30 42 Allied During Kill 505 | . . . . . . . . 421 43 39 2 Successful Hack 10 | . 5 . . . . . . . . . 5 Disable Machine 225 | . . . . . 15 . . 30 . . 180 Destroy Structure 229 | . . . . . 21 . . 102 . . 106 Lose Combat Pursuer 45 | . 30 . . . . . . 15 . . . Influence Decreases 2674 | . 112 5 . . 319 157 . 733 719 295 334 Entered New Map 224 | . . . . . . 28 . . 187 4 5 Time Decay 1981 | . 102 5 . . 289 129 . 483 482 291 200 Lost Part 179 | . 10 . . . 30 . . . 10 . 129 Lost Ally 140 | . . . . . . . . 100 40 . . Purge Threat 150 | . . . . . . . . 150 . . . Squads Dispatched 15 | . . . . 1 2 1 . 5 . . 6 Investigation 2 | . . . . 1 1 . . . . . . Extermination 6 | . . . . . . . . 4 . . 2 Reinforcement 7 | . . . . . 1 1 . 1 . . 4 Assault . | . . . . . . . . . . . . Garrison . | . . . . . . . . . . . . Intercept . | . . . . . . . . . . . . Searches Triggered . | . . . . . . . . . . . . Construction Impeded 2 | . . . . . . . . . . . 2 Haulers Reinforced 1 | . . . . . . . . 1 . . . Active Scanning Responses . | . . . . . . . . . . . . Cargo Convoy Interrupts . | . . . . . . . . . . . . Stealth | -11 -10 -10 -10 -9 -8 -7 -7 -7 -7 -7 -6 --------- Run | Yrd Mat Min Exi Min Mat Fac Was Fac Low Low Fac Distress Signals 2 | . . . . . 1 . . 1 . . . Communications Jammed . | . . . . . . . . . . . . Distress Signals . | . . . . . . . . . . . . Times Spotted 102 | . 14 2 . . 17 6 . 25 7 11 20 Peak Tracking Total 7 | . 7 2 . . 3 2 . 4 3 4 4 Tactical Retreats 3 | . 2 . . . . . . 1 . . . Traps | -11 -10 -10 -10 -9 -8 -7 -7 -7 -7 -7 -6 ------- Run | Yrd Mat Min Exi Min Mat Fac Was Fac Low Low Fac Traps Triggered 3 | . . . . . 2 1 . . . . . Indirectly . | . . . . . . . . . . . . Trap Hack Attempts . | . . . . . . . . . . . . Triggered . | . . . . . . . . . . . . Disarmed . | . . . . . . . . . . . . Reprogrammed . | . . . . . . . . . . . . Reused . | . . . . . . . . . . . . Traps Extracted . | . . . . . . . . . . . . Installed . | . . . . . . . . . . . . Triggered . | . . . . . . . . . . . . Machines | -11 -10 -10 -10 -9 -8 -7 -7 -7 -7 -7 -6 ---------- Run | Yrd Mat Min Exi Min Mat Fac Was Fac Low Low Fac Machines Disabled 15 | . . . . . 1 . . 2 . . 12 Max in Single Turn 6 | . . . . . 1 . . . . . 6 Machines Repaired . | . . . . . . . . . . . . Machines Dismantled . | . . . . . . . . . . . . Machines Sabotaged . | . . . . . . . . . . . . Overloaded Fab Kills . | . . . . . . . . . . . . Hacking | -11 -10 -10 -10 -9 -8 -7 -7 -7 -7 -7 -6 --------- Run | Yrd Mat Min Exi Min Mat Fac Was Fac Low Low Fac Machines Accessed 13 | . 2 . 1 1 2 . . 2 3 1 1 Terminals 6 | . 2 . . . 1 . . 2 . . 1 Fabricators . | . . . . . . . . . . . . Repair Stations . | . . . . . . . . . . . . Recycling Units 1 | . . . . . 1 . . . . . . Scanalyzers . | . . . . . . . . . . . . Garrison Access . | . . . . . . . . . . . . Total Hacks 16 | . 3 . 1 1 3 . . 3 3 1 1 Successful 10 | . 1 . 1 1 1 . . 1 3 1 1 Failed 6 | . 2 . . . 2 . . 2 . . . Catastrophic 1 | . 1 . . . . . . . . . . Database Lockouts . | . . . . . . . . . . . . Manual 6 | . . . 1 . 2 . . 3 . . . Terminals 9 | . 3 . . . 2 . . 3 . . 1 Fabricators . | . . . . . . . . . . . . Repair Stations . | . . . . . . . . . . . . Recycling Units 1 | . . . . . 1 . . . . . . Scanalyzers . | . . . . . . . . . . . . Garrison Access . | . . . . . . . . . . . . Terminal Hacks 10 | . 1 . 1 1 1 . . 1 3 1 1 Record 1 | . . . . . . . . . 1 . . Prototype ID Bank 1 | . 1 . . . . . . . . . . Open Door 4 | . . . . 1 . . . . 2 1 . Open DSF 1 | . . . . . . . . . . . 1 Unreport Threat 2 | . . . . . 1 . . 1 . . . Proto ID Catalog 1 | . . . 1 . . . . . . . . Fabricator Hacks . | . . . . . . . . . . . . Repair Station Hacks . | . . . . . . . . . . . . Recycling Unit Hacks . | . . . . . . . . . . . . Scanalyzer . | . . . . . . . . . . . . Garrison Access Hacks . | . . . . . . . . . . . . Unauthorized Hacks . | . . . . . . . . . . . . Terminals . | . . . . . . . . . . . . Fabricators . | . . . . . . . . . . . . Repair Stations . | . . . . . . . . . . . . Recycling Units . | . . . . . . . . . . . . Scanalyzers . | . . . . . . . . . . . . Garrison Access . | . . . . . . . . . . . . Data Cores Recovered 1 | . . . . . . . . 1 . . . Used 1 | . . . . . . . . 1 . . . Hacking Detections 2 | . 1 . . . . . . 1 . . . Full Trace Events . | . . . . . . . . . . . . Feedback Events . | . . . . . . . . . . . . Feedback Blocked . | . . . . . . . . . . . . Robot Schematics Acquired . | . . . . . . . . . . . . Robots Built . | . . . . . . . . . . . . Authchips . | . . . . . . . . . . . . Time . | . . . . . . . . . . . . Total Robot Build Rating . | . . . . . . . . . . . . Part Schematics Acquired . | . . . . . . . . . . . . Parts Built . | . . . . . . . . . . . . Authchips . | . . . . . . . . . . . . Time . | . . . . . . . . . . . . Total Part Build Rating . | . . . . . . . . . . . . Part Studies Acquired . | . . . . . . . . . . . . Parts Repaired . | . . . . . . . . . . . . Time . | . . . . . . . . . . . . Parts Recycled . | . . . . . . . . . . . . Recycled Matter . | . . . . . . . . . . . . Retrieved Matter . | . . . . . . . . . . . . Retrieved Components . | . . . . . . . . . . . . Parts Scanalyzed . | . . . . . . . . . . . . Part Schematics Acquired . | . . . . . . . . . . . . Parts Damaged . | . . . . . . . . . . . . Bothacking | -11 -10 -10 -10 -9 -8 -7 -7 -7 -7 -7 -6 ------------ Run | Yrd Mat Min Exi Min Mat Fac Was Fac Low Low Fac Used RIF Installer . | . . . . . . . . . . . . Robots Hacked . | . . . . . . . . . . . . Non-combat . | . . . . . . . . . . . . Combat . | . . . . . . . . . . . . Robot Hacks Applied . | . . . . . . . . . . . . Relay Couplers Released . | . . . . . . . . . . . . Fabnet Peak Effective % . | . . . . . . . . . . . . Robots Rewired . | . . . . . . . . . . . . Allies Hacked 1 | . . . . . . . . 1 . . . Hacks Repelled . | . . . . . . . . . . . . Allies | -11 -10 -10 -10 -9 -8 -7 -7 -7 -7 -7 -6 -------- Run | Yrd Mat Min Exi Min Mat Fac Was Fac Low Low Fac Total Allies 20 | . . . . . . . 20 . . . . Largest Group 20 | . . . . . . . 20 16 4 2 2 Highest-Rated Group 438 | . . . . . . . 438 329 106 40 38 Highest-Rated Ally 35 | . . . . . . . 35 35 35 20 19 Total Orders . | . . . . . . . . . . . . Ally Attacks 155 | . . . . . . . . 136 7 11 1 Total Damage 3224 | . . . . . . . . 2742 145 337 . Kills 35 | . . . . . . . . 29 2 4 . Allies Corrupted . | . . . . . . . . . . . . Allies Melted . | . . . . . . . . . . . . Intel | -11 -10 -10 -10 -9 -8 -7 -7 -7 -7 -7 -6 ------- Run | Yrd Mat Min Exi Min Mat Fac Was Fac Low Low Fac Active Infowar (turns) 2035 | . 127 195 349 114 . . . . . 306 944 Optics 2011 | . 127 195 349 114 . . . . . 306 920 IFF 24 | . . . . . . . . . . . 24 Triangulation 427 | . . . . . . . . . . . 427 Robot Analysis Total . | . . . . . . . . . . . . Derelict Logs Recovered 2 | . . . . . . . . . 1 1 . Drone Launches 3 | . . . . . . . 3 . . . . Drone Recoveries . | . . . . . . . . . . . . Exploration | -11 -10 -10 -10 -9 -8 -7 -7 -7 -7 -7 -6 ------------- Run | Yrd Mat Min Exi Min Mat Fac Was Fac Low Low Fac Turns Passed 8160 | 89 292 195 349 251 1269 518 396 1600 1240 890 1071 Spaces Moved 3831 | 49 153 113 218 127 508 238 203 761 638 438 385 Core 31 | 1 . . . . . . . 2 . . 28 Treads 1344 | 48 153 113 218 54 . . . 167 591 . . Legs 2443 | . . . . 73 508 238 203 592 47 438 344 Wheels . | . . . . . . . . . . . . Hover 13 | . . . . . . . . . . . 13 Flight . | . . . . . . . . . . . . Fastest Speed 50 | 50 160 160 160 160 190 190 190 145 145 133 120 Average Speed 193 | 157 160 160 160 180 205 190 190 200 186 188 231 Slowest Speed 1250 | 160 160 160 160 200 330 190 190 1250 350 210 850 Overloaded Moves . | . . . . . . . . . . . . Propulsion Burnouts . | . . . . . . . . . . . . Robots Hopped . | . . . . . . . . . . . . Potential Cave-ins 2 | . . . . . . . . 2 . . . Cave-ins Triggered . | . . . . . . . . . . . . Exploration Rate (%) 35 | 4 25 18 63 13 46 7 88 23 71 58 15 Regions Visited 11 Branch Regions 5 Pre-discovered Areas 1 | . . . . . . . . . 1 . . Known Exits Taken . | . . . . . . . . . . . . Unknown Exits Taken 9 | 1 1 1 1 1 1 . . 1 1 1 . Scrap Searched 4 | . . . . . . . . . 2 2 . Spaces Dug . | . . . . . . . . . . . . Terrain Destroyed 202 | . . . . . 21 . . 27 3 38 113 Melee . | . . . . . . . . . . . . Projectile 46 | . . . . . 17 . . 3 3 7 16 AOE 156 | . . . . . 4 . . 24 . 31 97 Terrain Rammed . | . . . . . . . . . . . . Walls Destroyed . | . . . . . . . . . . . . Machines Disabled . | . . . . . . . . . . . . Actions | -11 -10 -10 -10 -9 -8 -7 -7 -7 -7 -7 -6 --------- Run | Yrd Mat Min Exi Min Mat Fac Was Fac Low Low Fac Total 4262 | 58 176 122 218 149 634 271 215 811 662 465 481 Wait 29 | . . . . . 27 . . 2 . . . Move 3821 | 48 152 112 217 126 507 238 202 760 637 437 385 Hop . | . . . . . . . . . . . . Pick Up 53 | 4 2 2 1 8 16 4 2 6 2 2 4 Fast Attach 51 | 6 4 2 . 1 8 1 4 8 3 2 12 Attach 27 | . 1 . . 3 7 4 . . . 2 10 Detach 1 | . . . . . . . 1 . . . . Swap 21 | . 3 . . . 5 1 1 3 3 2 3 Drop 73 | . 3 2 . 8 16 5 5 14 6 3 11 Fire 160 | . 11 2 . 1 44 15 . 10 11 17 49 Melee 3 | . . . . . . . . . . . 3 Ram 1 | . . . . . . . . . . . 1 Kick 17 | . . . . 1 4 3 . 6 . . 3 Crush 5 | . . 2 . 1 . . . 2 . . . Escape Stasis . | . . . . . . . . . . . . Rewire . | . . . . . . . . . . . . Trap . | . . . . . . . . . . . . Miscellaneous . | . . . . . . . . . . . . Route ------- -11/Scrapyard -10/Materials -10/Mines -10/Exiles -9/Mines -8/Materials -7/Factory -7/Waste -7/Factory -7/Lower Caves -7/Lower Caves -6/Factory History --------- Turn | Location | Event 17 | -11/Scrapyard | Discovered new exit (range 15) 90 | -11/Scrapyard | Entered Materials 242 | -10/Materials | Discovered new exit (range 15) 304 | -10/Materials | Build established: Mutant 382 | -10/Materials | Entered Mines 387 | -10/Mines | Joined a pair of Derelicts in attacking an 0b10 outpost 433 | -10/Mines | Deemed a non-threat by the Exiles lab entrance 433 | -10/Mines | Discovered new exit (range 5) 577 | -10/Mines | Entered Exiles 622 | -10/Exiles | Met 8R-AWN 648 | -10/Exiles | Met EX-HEX 696 | -10/Exiles | Met EX-BIN 726 | -10/Exiles | Aligned with FarCom system 728 | -10/Exiles | Given EX-Vault access code 765 | -10/Exiles | Opened EX-Vault 776 | -10/Exiles | Found Chronowheel 810 | -10/Exiles | Warned to stay clear of 0b10 Research branches 831 | -10/Exiles | Exiles lab attacked by MAIN.C 911 | -10/Exiles | Discovered new exit (range 10) 926 | -10/Exiles | Left Exiles lab with Chronowheel 926 | -10/Exiles | Entered Mines 933 | -9/Mines | Received a Rocket Launcher from a helpful Derelict 943 | -9/Mines | Discovered new exit (range 9) 1005 | -9/Mines | Met a Derelict shopkeep closing up shop 1177 | -9/Mines | Entered Materials 1177 | -8/Materials | Evolved 4 slots: Power x1, Utility x2, Weapon x1 1476 | -8/Materials | Build established: Gunner 1925 | -8/Materials | Build established: Skirmisher 2052 | -8/Materials | Discovered new exit (range 13) 2446 | -8/Materials | Entered Factory 2446 | -7/Factory | Evolved 2 slots: Propulsion x1, Utility x1 2743 | -7/Factory | Discovered new exit (range 15) 2753 | -7/Factory | Build established: Scavenger-Tank 2964 | -7/Factory | Sucked down chute 2964 | -7/Factory | Entered Waste 2965 | -7/Waste | Joined by Warlord forces that had cleared the area 3099 | -7/Waste | Build established: Tank 3332 | -7/Waste | Discovered new exit (range 13) 3360 | -7/Waste | Entered Factory 3360 | -7/Factory | Accompanied by 16 allies 3467 | -7/Factory | Build established: Scavenger-Tank 3539 | -7/Factory | Lost 5 allies 3885 | -7/Factory | Lost 3 allies 4194 | -7/Factory | Build established: Scavenger-Skirmisher 4844 | -7/Factory | Build established: Scavenger-Gunner 4917 | -7/Factory | Discovered new exit (range 15) 4960 | -7/Factory | Entered Lower Caves 4960 | -7/Lower Caves | Accompanied by 4 allies 5178 | -7/Lower Caves | Entered a destroyed Warlord outpost 5633 | -7/Lower Caves | Attracted the attention of an 0b10 checkpoint 5935 | -7/Lower Caves | Build established: Scavenger-Mutant 6076 | -7/Lower Caves | Discovered new exit (range 5) 6200 | -7/Lower Caves | Entered another Lower Caves area 6200 | -7/Lower Caves | Accompanied by 2 allies 6218 | -7/Lower Caves | Entered a destroyed Warlord outpost 6261 | -7/Lower Caves | Attracted the attention of an 0b10 checkpoint 6289 | -7/Lower Caves | Discovered new exit (range 12) 6574 | -7/Lower Caves | Learned Factory security intel 6759 | -7/Lower Caves | Build established: Scavenger-Gunner 7090 | -7/Lower Caves | Entered Factory 7090 | -6/Factory | Accompanied by 2 allies 7090 | -6/Factory | Evolved 2 slots: Propulsion x1, Utility x1 7522 | -6/Factory | Build established: Gunner 7862 | -6/Factory | Lost 4 parts (3n1w) 7938 | -6/Factory | Core integrity fell below 50% 7978 | -6/Factory | Lost 3 parts (2p1w) 8009 | -6/Factory | Core integrity fell below 20% 8094 | -6/Factory | Build established: Mutant 8156 | -6/Factory | Lost 4 parts (1p2n1u) 8161 | -6/Factory | Destroyed by S-27 Virus with Autogun Last Messages --------------- 08121_ U-05 Engineer builds a Door. 08124_ Acquired Carbon-fiber Leg. 08125_ Slug penetrates Wall. 08125_ Gravmag System destroyed. 08125_ Slug penetrates Wall. 08126_ Acquired 6 matter. 08127_ K-01 Serf cleans the Megafabricator. 08129_ W-25 Informer destroyed. 08130_ K-01 Serf cleans the Megafabricator. 08133_ System corrupted: Component data lost. 08133_ Acquired 19 matter. 08135_ K-01 Serf collects debris. 08135_ Acquired Lgt. Deuterium Engine. 08139_ K-01 Serf destroyed. 08142_ Acquired 17 matter. 08147_ Destroyed VTOL Module. 08149_ S-27 Virus suffers critical hit (Blast). 08149_ S-27 Virus destroyed. 08151_ Acquired 2 matter. 08159_ Destroyed VTOL Module. Map ----- +----------------------------------------------------+ | ??????????????????????###"""##+#####""###????????? | | ??????????????????????# " #????????? | | ??????????????????????# "#?????????? | | ????????????????????### "#?????????? | | ????????????????????# # #?????????? | | ???????????????????## # % "#?????????? | | ???????????????????# " % "#?????????? | | ????????#! ######### % ! ##?????????? | | ?? + *%% ##?????????? | | ????????# %!########## ##?????????? | | ??????????????????# # * #??????????? | | ??????????????????### #################??????????? | | ????????????????????# # | ##????????????? | | ????????????????????### !=! ##????????????? | | ????????????????????## ##????????????? | | ?????????????????????# ! # ???????????? | | ?????????????????????# !%* # ] "?????????? | | ?????????????????????## = ! # "?????????? | | ?????????????????????## # "?????????? | | ??????????????????????# # "?????????? | | ??????????????????????# # ! ????????? | | ?????????????????????## # #??????????? | | ?????????????????????## = [ # ##??????????? | | ??????????????????????# !% % # #???????????? | | ????????????##############;##+#+######???????????? | | ????????? !@ = #####????????????? | | ????????? % % * ! #????????????????? | | ????????? s s """"""""" #????????????????? | | ????????? % """"""""" #????????????????? | | ??????????? """"""""" #????????????????? | | ????????????#? """"""""" ???????????????? | | ????????????????? """"""""" ??????????????? | | ???????????????????????""""""? ?????????????? | | ?????????????????????????????? ####?????????????? | | ?????????????????????????????? #????????????????? | | ?????????????????????????????? #????????????????? | | ?????????????????????????????? #????????????????? | | ??????????????????????????????? #????????????????? | | ??????????????????????????????? #????????????????? | | ?????????????????????????????????????????????????? | | ?????????????????????????????????????????????????? | | ?????????????????????????????????????????????????? | | ?????????????????????????????????????????????????? | | ?????????????????????????????????????????????????? | | ?????????????????????????????????????????????????? | | ?????????????????????????????????????????????????? | | ?????????????????????????????????????????????????? | | ?????????????????????????????????????????????????? | | ?????????????????????????????????????????????????? | | ?????????????????????????????????????????????????? | +----------------------------------------------------+ Best States ------------- Heat Dissipation 51 Energy Generation 37 Energy Capacity 550 Matter Stores 300 Matter Capacity 300 Sight Range 20 Terrain Scan Density 210 EM Shielding 2 Armor Coverage 600 Propulsion Shielding 66 Weapon Shielding 33 Evasion (%) 55 Targeting Accuracy 6 Target Analysis 5 Core Analysis 6 Armor Integrity Analysis 30 Recoil Reduction 3 Offensive Hacking 10 Item Schematics ----------------- None Robot Schematics ------------------ None Fabricated ------------ Nothing Repaired ---------- Nothing Studied --------- None Alien Tech Used ----------------- None Achievements -------------- Error 47 We Are Legion Challenges ------------ None Game ------ Seed LaunchArmoredWartreads Manual? 0 Play Time 01:12:35 Cumulative 7.8 hours Start 2026.01.04 @ 01:22:47 End 2026.01.04 @ 02:35:11 Sessions 1 Manual Loads 0 Difficulty Rogue Special Mode None Game No. 14 Rogue 11 Adventurer 3 Explorer 0 Win Type - Total 0 Types 0/0/0/0/0/0/0/0/0/0 Lore% 7 Gallery% 14 Achievement% 11 Wizard Run 0 Options --------- Layout 0 ASCII 0 Keyboard 0 Movement Mouse Keybinds 0 Fullscreen 1 Font 18/SmallcapsGlow Map View 65x51 Zoom Use 0% Tactical HUD 1 Map Filters NONE Filters NONE Steam 1 RUN: d2a5db28-2f2f-4fcc-83ce-52ce05f5f1a2